Cogmind - Beta 9.4 @@@ ROGUE MODE // 2020.03.10 @ 16:29:23 Player: jellyman Result: Destroyed by Y-45 Defender with Heavy Assault Rifle Performance ------------- Evolutions (1) 500 Regions Visited (2) 400 Robots Destroyed (14) 70 Value Destroyed (397) 397 Prototype IDs (0) 0 Alien Tech Used (0) 0 Bonus (0) 0 TOTAL SCORE: 1367 Bonus ------- None Cogmind --------- Core Integrity 0/400 Matter 136/300 Energy 100/100 System Corruption 0% Temperature Cool (55) Movement Core (300) Ox5 Location -9/Materials Parts ------- > --- POWER (1) -------- (None) > --- PROPULSION (4) --- (None) > --- UTILITY (2) ------ Large Storage Unit > --- WEAPON (2) ------- (None) > --- INVENTORY (10) --- Light Ion Engine Large Storage Unit Medium Matter Pod (14) Large Matter Pod (0) Peak State ------------ > --- POWER ------------ Light Ion Engine > --- PROPULSION ------- Aluminum Leg Aluminum Leg > --- UTILITY ---------- Heat Sink Small Storage Unit > --- WEAPON ----------- Medium Laser Assault Rifle > --- INVENTORY -------- Ion Engine Aluminum Leg Medium Battery EM Pulse Gun Grenade Launcher Grenade Launcher [Rating: 7] Favorites ----------- Power Light Ion Engine Engine Light Ion Engine Power Core Light Nuclear Core Propulsion Aluminum Leg Treads Light Treads Leg Aluminum Leg Utility Small Storage Unit Device Heat Sink Storage Small Storage Unit Weapon Assault Rifle Energy Gun Medium Laser Ballistic Gun Assault Rifle Launcher Grenade Launcher Build | -11 -10 -9 ------- Run | Scr Mat Mat Slots Evolved 2 | . . 2 Power . | . . . Propulsion 2 | . . 2 Utility . | . . . Weapon . | . . . Parts Attached 23 | 7 3 13 Power 4 | 1 . 3 Engine 3 | 1 . 2 Core 1 | . . 1 Reactor . | . . . Propulsion 7 | 2 2 3 Treads 2 | 2 . . Leg 5 | . 2 3 Wheel . | . . . Hover . | . . . Flight . | . . . Utility 5 | 1 1 3 Device 3 | . 1 2 Storage 2 | 1 . 1 Processor . | . . . Hackware . | . . . Protection . | . . . Artifact . | . . . Weapon 7 | 3 . 4 Energy Gun 4 | 2 . 2 Energy Cannon . | . . . Ballistic Gun 1 | 1 . . Ballistic Cannon . | . . . Launcher 2 | . . 2 Special Weapon . | . . . Impact Weapon . | . . . Slashing Weapon . | . . . Piercing Weapon . | . . . Special Melee Weapon . | . . . Unidentified Prototypes . | . . . Parts Lost 15 | . 1 14 Power 3 | . . 3 Propulsion 5 | . . 5 Utility 1 | . . 1 Weapon 6 | . 1 5 Highest Loss Streak 6 | . 1 6 Average Slot Usage (%) 74 | . 89 57 Engine 11 | . 14 8 Treads 8 | . 15 . Leg 14 | . 12 16 Device 7 | . 4 10 Storage 12 | . 14 11 Energy Gun 7 | . 13 . Ballistic Gun 9 | . 14 4 Launcher 2 | . . 5 Naked Turns . | . . . Heaviest Build 25 | 11 12 25 Greatest Support 40 | 40 40 30 Greatest Overweight (x) 8 | 3 3 8 Average Overweight (x) . | . . 1 Largest Inventory Capacity 12 | 6 6 12 Average Capacity 7 | 5 6 9 Most Carried 7 | 2 6 7 Average Carried 4 | 1 4 5 Final Capacity 10 | 6 6 10 Final Carried 6 | 2 6 4 Class Distribution -------------------- 80% | Mutant 19% | Scavenger-Mutant Dominant Class ---------------- Mutant | -10/Materials Mutant | -9/Materials Resources | -11 -10 -9 ----------- Run | Scr Mat Mat Matter Collected 408 | 268 98 42 Remotely . | . . . Salvage Created 367 | . 183 184 Parts 27 | . 17 10 Haulers Intercepted . | . . . Recyclers Shooed . | . . . Parts Field Recycled . | . . . Retrieved Matter . | . . . Parts Self-Destructed . | . . . Prevented . | . . . Kills | -11 -10 -9 ------- Run | Scr Mat Mat Combat Hostiles Destroyed 12 | . 6 6 Guns 6 | . 6 . AOE 6 | . . 6 Classes Destroyed 4 | . 2 2 Worker 2 | . . 2 Swarmer 2 | . 2 . Grunt 8 | . 4 4 Sentry 2 | . . 2 Best Kill Streak 5 | . 2 5 Combat Bots Only 3 | . 2 3 Max Kills in Single Turn 3 | . 1 3 Gunslinging . | . . . Exploded 2 | . . 2 Melee . | . . . Uniques/NPCs Destroyed . | . . . Combat | -11 -10 -9 -------- Run | Scr Mat Mat Damage Taken 1540 | . 382 1158 Core 489 | . 85 404 Absorbed by Shields . | . . . Core Remaining (%) 83 | 100 66 . Volleys Fired 45 | . 19 26 Largest 1 | . 1 1 Hottest 56 | . 20 56 Shots Fired 45 | . 19 26 Gun 34 | . 19 15 Cannon . | . . . Launcher 11 | . . 11 Special . | . . . Kinetic 31 | . 19 12 Thermal 3 | . . 3 Explosive 11 | . . 11 Electromagnetic . | . . . Robot Hit Streak 15 | . 6 15 Robot Miss Streak 4 | . 4 4 Penetration Max . | . . . Secondary Targets . | . . . Shots Hit Robots 28 | . 10 18 Core Hits 27 | . 10 17 Critical Hits 1 | . 1 . Critical Kills . | . . . Critical Parts Destroyed 1 | . 1 . Melee Attacks . | . . . Impact . | . . . Slashing . | . . . Piercing . | . . . Sneak Attacks . | . . . Combat Hostiles . | . . . Follow-up Attacks . | . . . Damage Inflicted 755 | . 164 591 Guns 282 | . 164 118 Cannons . | . . . Explosions 473 | . . 473 Melee . | . . . Ramming . | . . . Kinetic 239 | . 164 75 Thermal 43 | . . 43 Explosive 473 | . . 473 Electromagnetic . | . . . Impact . | . . . Slashing . | . . . Piercing . | . . . Highest Corruption 2 | . 2 . Average Corruption 1 | . 1 . Corruption Purged . | . . . Overload Shots . | . . . Overflow Damage 4 | . . 4 Projectiles . | . . . Explosions 4 | . . 4 Melee . | . . . Knockbacks . | . . . Impact . | . . . Kinetic . | . . . Secondary . | . . . Self-Inflicted Damage 49 | . . 49 Shots 3 | . . 3 Rammed . | . . . Targets Rammed . | . . . Kicked . | . . . Crushed . | . . . Highest Temperature 46 | . 2 46 Average Temperature 13 | . 2 15 Received Heat Transfer 561 | . 120 441 Siege Activations . | . . . Robots Corrupted . | . . . Combat Hostiles . | . . . Parts Fried . | . . . Impact Corruptions . | . . . Robots Melted . | . . . Combat Hostiles . | . . . Parts Melted . | . . . Heat Transferred 111 | . . 111 Parts Sabotaged . | . . . Parts Stolen . | . . . Parts Stripped . | . . . Power Chain Reactions . | . . . Missiles Intercepted . | . . . Alert | -11 -10 -9 ------- Run | Scr Mat Mat Peak Influence 125 | . 120 125 Average Influence 35 | . 28 53 Maximum Alert Level . | . . . Low Security (%) 100 | 100 100 100 Level 1 . | . . . Level 2 . | . . . Level 3 . | . . . Level 4 . | . . . Level 5 . | . . . High Security . | . . . Max Security . | . . . Squads Dispatched 3 | . . 3 Investigation . | . . . Extermination . | . . . Reinforcement 3 | . . 3 Assault . | . . . Garrison . | . . . Intercept . | . . . Construction Impeded . | . . . Haulers Reinforced . | . . . Stealth | -11 -10 -9 --------- Run | Scr Mat Mat Distress Signals 2 | . . 2 Communications Jammed . | . . . Distress Signals . | . . . Times Spotted 22 | . 8 14 Peak Tracking Total 4 | . 3 4 Tactical Retreats 2 | . 2 . Traps | -11 -10 -9 ------- Run | Scr Mat Mat Traps Triggered 2 | . 2 . Indirectly . | . . . Trap Hack Attempts . | . . . Triggered . | . . . Disarmed . | . . . Reprogrammed . | . . . Reused . | . . . Traps Extracted . | . . . Installed . | . . . Triggered . | . . . Machines | -11 -10 -9 ---------- Run | Scr Mat Mat Machines Disabled . | . . . Max in Single Turn . | . . . Machines Sabotaged . | . . . Garrisons Compromised . | . . . Overloaded Fab Kills . | . . . Fab Network Shutdowns . | . . . Hacking | -11 -10 -9 --------- Run | Scr Mat Mat Machines Accessed 4 | . 3 1 Terminals 2 | . 2 . Fabricators . | . . . Repair Stations . | . . . Recycling Units 1 | . 1 . Scanalyzers 1 | . . 1 Garrison Access . | . . . Total Hacks 6 | . 4 2 Successful 6 | . 4 2 Failed . | . . . Catastrophic . | . . . Database Lockouts . | . . . Manual . | . . . Terminals 3 | . 3 . Fabricators . | . . . Repair Stations . | . . . Recycling Units 1 | . 1 . Scanalyzers 2 | . . 2 Garrison Access . | . . . Terminal Hacks 3 | . 3 . Record 2 | . 2 . Alert Level 1 | . 1 . Fabricator Hacks . | . . . Repair Station Hacks . | . . . Recycling Unit Hacks 1 | . 1 . Report Inventory 1 | . 1 . Scanalyzer 2 | . . 2 Insert Component 1 | . . 1 Analyze 1 | . . 1 Garrison Access Hacks . | . . . Unauthorized Hacks . | . . . Terminals . | . . . Fabricators . | . . . Repair Stations . | . . . Recycling Units . | . . . Scanalyzers . | . . . Garrison Access . | . . . Data Cores Recovered . | . . . Used . | . . . Hacking Detections 1 | . 1 . Full Trace Events . | . . . Feedback Events . | . . . Feedback Blocked . | . . . Robot Schematics Acquired . | . . . Robots Built . | . . . Matter . | . . . Time . | . . . Total Robot Build Rating . | . . . Part Schematics Acquired 1 | . . 1 Parts Built . | . . . Matter . | . . . Time . | . . . Total Part Build Rating . | . . . Parts Repaired . | . . . Time . | . . . Parts Recycled . | . . . Recycled Matter . | . . . Retrieved Matter . | . . . Retrieved Components . | . . . Parts Scanalyzed 1 | . . 1 Part Schematics Acquired 1 | . . 1 Parts Damaged . | . . . Bothacking | -11 -10 -9 ------------ Run | Scr Mat Mat Used RIF Installer . | . . . Robots Hacked . | . . . Non-combat . | . . . Combat . | . . . Robot Hacks Applied . | . . . Relay Couplers Released . | . . . Robots Rewired . | . . . Allies Hacked . | . . . Hacks Repelled . | . . . Allies | -11 -10 -9 -------- Run | Scr Mat Mat Total Allies . | . . . Largest Group . | . . . Highest-Rated Group . | . . . Highest-Rated Ally . | . . . Total Orders . | . . . Ally Attacks . | . . . Total Damage . | . . . Kills . | . . . Allies Corrupted . | . . . Allies Melted . | . . . Intel | -11 -10 -9 ------- Run | Scr Mat Mat Robot Analysis Total . | . . . Derelict Logs Recovered . | . . . Drone Launches . | . . . Drone Recoveries . | . . . Exploration | -11 -10 -9 ------------- Run | Scr Mat Mat Turns Passed 898 | 89 436 373 Spaces Moved 453 | 55 249 149 Core 62 | 20 6 36 Treads 166 | 35 131 . Legs 225 | . 112 113 Wheels . | . . . Hover . | . . . Flight . | . . . Fastest Speed 50 | 50 120 120 Average Speed 159 | 139 142 193 Slowest Speed 450 | 200 200 450 Overloaded Moves . | . . . Propulsion Burnouts . | . . . Robots Hopped . | . . . Cave-ins Triggered . | . . . Exploration Rate (%) 20 | 4 36 21 Regions Visited 2 Branch Regions . Pre-discovered Areas . | . . . Known Exits Taken . | . . . Unknown Exits Taken 2 | 1 1 . Scrap Searched . | . . . Spaces Dug . | . . . Terrain Destroyed 29 | . . 29 Melee . | . . . Projectile . | . . . AOE 29 | . . 29 Actions | -11 -10 -9 --------- Run | Scr Mat Mat Total 583 | 65 310 208 Wait 40 | 1 30 9 Move 451 | 54 248 149 Hop . | . . . Pick Up 13 | 2 6 5 Fast Attach 15 | 6 3 6 Attach 8 | 1 . 7 Detach 3 | 1 . 2 Swap . | . . . Drop 8 | . 4 4 Fire 45 | . 19 26 Melee . | . . . Ram . | . . . Kick . | . . . Crush . | . . . Escape Stasis . | . . . Rewire . | . . . Trap . | . . . Miscellaneous . | . . . Route ------- -11/Scrapyard -10/Materials (discovered 2 exits: *Mat / [*Min]) -9/Materials History --------- Turn | Location | Event 4 | -11/Scrapyard | Discovered new exit (range 15) 90 | -11/Scrapyard | Entered Materials 300 | -10/Materials | Build established: Mutant 408 | -10/Materials | Discovered new exit (range 16) 505 | -10/Materials | Discovered new exit (range 15) 526 | -10/Materials | Entered another Materials area 526 | -9/Materials | Evolved 2 slots: Propulsion x2 729 | -9/Materials | Lost 4 parts (3n1w) 837 | -9/Materials | Core integrity fell below 50% 859 | -9/Materials | Core integrity fell below 20% 899 | -9/Materials | Destroyed by Y-45 Defender with Heavy Assault Rifle Last Messages --------------- 00872_ K-01 Serf collects debris. 00873_ U-05 Engineer lays Concrete. 00876_ The unstable cave ceiling collapses. 00876_ U-05 Engineer lays Concrete. 00881_ The unstable cave ceiling collapses. 00881_ U-05 Engineer lays Concrete. 00881_ Acquired Ion Engine. 00884_ Acquired Beam Rifle. 00885_ Acquired 33 matter. 00891_ Grenade Launcher destroyed. 00891_ U-05 Engineer lays Concrete. 00894_ Aluminum Leg destroyed. 00896_ Heat Sink destroyed. 00897_ U-05 Engineer builds a Wall. 00897_ G-34 Mercenary destroyed. 00899_ Nuclear Reactor explodes. 00899_ EM Pulse Gun destroyed. 00899_ Beam Rifle destroyed. 00899_ Ion Engine destroyed. 00899_ Repair Station disabled. Map ----- +----------------------------------------------------+ | ?????????????????????????????????????????????????? | | ?????????????????????????????????????????????????? | | ????????????????????????? ?????????????????????? | | ???????????????????????? ?????????????????????? | | ????????????????????????# ?????????????????????? | | ???????????????????????## ?????????????????????? | | ??????????????????????? ?????????????????????? | | ??????????????????????? #######??????????????? | | ???????????????????????? #"""""#??????????????? | | ???????????????######+#?# #""T""#######+######## | | ??????????????? ?# | | ????????????????? # | | ?????????????????"" + | | ??????????????????" #u | | ????????????????""" "" # " """ | | ??????????????# """ ; """ | | ??????????????# S" ; % """ | | ??????????????# ; = | | ???????????????????#####; ! | | ???????????????????????## !! | | ??????????????????#?#### ##### | | ????????????????### # # ; # ???# | | ????????????????# # #########????????# | | ?????????????#### = #??????????????# | | ????????????#Y [ ##??????????????# | | ???????????????""" @ *g #????????# | | ???????????????""" [%g +????????# | | ???????????????""" #????????# | | ?????????????# ### ### #????????# | | ?????????????# " [[ ####??????? #????????## | | ?????????????? "R [ ##??????????? /????????# | | ???????????????""" [[ ##???????????????????????# | | ???????????????########?????????????????????????# | | ????????????????????????????????????????????????#! | | ?????????????????????????????????????????????????! | | ????????????????????????????????????????????????? | | ?????????????????????????????????????????????????? | | ?????????????????????????????????????????????????? | | ?????????????????????????????????????????????????? | | ?????????????????????????????????????????????????? | | ?????????????????????????????????????????????????? | | ?????????????????????????????????????????????????? | | ?????????????????????????????????????????????????? | | ?????????????????????????????????????????????????? | | ?????????????????????????????????????????????????? | | ?????????????????????????????????????????????????? | | ?????????????????????????????????????????????????? | | ?????????????????????????????????????????????????? | | ?????????????????????????????????????????????????? | | ?????????????????????????????????????????????????? | +----------------------------------------------------+ Best States ------------- Heat Dissipation 28 Energy Generation 10 Energy Capacity 250 Matter Stores 300 Matter Capacity 300 Sight Range 16 Terrain Scan Density 10 Evasion (%) 50 Recoil Reduction 2 Item Schematics ----------------- EM Pulse Gun | -9/Materials | Scanalyzed Robot Schematics ------------------ None Fabricated ------------ Nothing Alien Tech Used ----------------- None Achievements -------------- None Challenges ------------ None Game ------ Seed GravitonDisruptorBuckler Manual? 0 Play Time 00:18:56 Cumulative 3.8 hours Start 2020.03.10 @ 04:15:56 End 2020.03.10 @ 16:29:23 Sessions 1 Manual Loads 0 Difficulty Rogue Special Mode None Game No. 10 Rogue 10 Adventurer 0 Explorer 0 Win Type - Total 0 Types 0/0/0/0/0/0/0 Lore% 4 Gallery% 9 Achievement% 8 Wizard Run 0 Options --------- ASCII 1 Keyboard 1 Movement Numpad Keybinds 0 Fullscreen 1 Font 16/CogWide Map View 76x50 Tactical HUD 1 Map Filters NONE Filters NONE Steam 1 RUN: 30c9c39b-9f27-4688-a5b3-3f4da2698d7a